fUSD/lending_fUSD_20250407
["ID","MTS","AMOUNT","RATE_DAILY","PERIOD"]
[357407618,1744048257653,-500.0,0.00044205,30]
[357407619,1744048257662,-918.31,0.00044205,30]
[357407620,1744048257672,-504.77604066,0.00044205,30]
[357407621,1744048257682,-1394.82,0.00044205,30]
[357407622,1744048257693,-1164.25,0.00044205,30]
[357407623,1744048257705,-731.04,0.00044205,30]
[357407624,1744048257718,-272.06,0.00044239,2]
[357407625,1744048257727,-150.0,0.00044255,2]
[357407626,1744048257737,-500.0,0.00044279,30]
[357407627,1744048257747,-762.17,0.0004428,30]
[357407628,1744048257757,-500.0,0.0004428,30]
[357407629,1744048257767,-500.0,0.0004428,30]
[357407630,1744048257777,-1415.94,0.0004428,30]
[357407631,1744048257788,-500.0,0.0004428,30]
[357407632,1744048257799,-504.8,0.0004428,30]
[357407633,1744048257810,-500.0,0.0004428,30]
[357407634,1744048257820,-826.95,0.0004428,30]
[357407635,1744048257830,-580.71,0.0004428,30]
[357407636,1744048257840,-564.68,0.0004428,30]
[357407637,1744048257850,-570.61,0.0004428,30]
[357407638,1744048257859,-500.0,0.0004428,30]
[357407639,1744048257869,-937.86,0.0004428,30]
[357407640,1744048257879,-120992.99,0.0004428,7]
[357407641,1744048257888,-942.11,0.0004428,30]
[357407642,1744048257898,-500.0,0.0004428,30]
[357407643,1744048257908,-685.96,0.0004428,30]
[357407644,1744048257918,-507.03,0.0004428,30]
[357407645,1744048257927,-718.35,0.0004428,30]
[357407646,1744048257937,-1057.84,0.0004428,30]
[357407647,1744048257947,-3424.04,0.0004428,30]
[357407648,1744048257957,-500.0,0.0004428,30]
[357407649,1744048257967,-500.0,0.0004428,30]
[357407650,1744048257976,-500.0,0.0004428,30]
[357407651,1744048257987,-500.0,0.0004428,30]
[357407652,1744048257997,-1394.86,0.0004428,30]
[357407653,1744048258007,-2140.84,0.0004428,30]
[357407654,1744048258195,-4593.17,0.0004428,30]
[357407655,1744048258206,-1658.6,0.0004428,30]
[357407656,1744048258216,-770.94,0.0004428,30]
[357407657,1744048258226,-1000.0,0.0004428,30]
[357407658,1744048258238,-500.0,0.0004428,30]
[357407659,1744048258249,-500.0,0.0004428,30]
[357407660,1744048258259,-500.0,0.0004428,30]
[357407661,1744048258270,-500.0,0.0004428,30]
[357407662,1744048258281,-500.0,0.0004428,30]
[357407663,1744048258290,-8562.38698715,0.00044283,15]
[357407664,1744048258301,-150.0,0.00044298,2]
[357407665,1744048258317,-27002.82600529,0.000443,14]
[357407666,1744048258329,-500.0,0.0004436,30]
[357407667,1744048258339,-375.45603846,0.0004436,120]
[357407668,1744048258349,-151.0,0.0004436,14]
[357407669,1744048258360,-2496.67,0.0004436,30]
[357407670,1744048258370,-151.0,0.0004436,14]
[357407671,1744048258381,-151.0,0.0004436,14]
[357407672,1744048258391,-166.400345,0.0004436,14]
[357407673,1744048258401,-166.400345,0.0004436,14]
[357407674,1744048258411,-500.0,0.0004437,30]
[357407675,1744048258421,-500.0,0.0004437,30]
[357407676,1744048258430,-174.934472,0.00044371,14]
[357407677,1744048258440,-1368.794186,0.00044371,14]
[357407678,1744048258449,-1368.794186,0.00044371,14]
[357407679,1744048258459,-151.0,0.00044371,14]
[357407680,1744048258469,-151.0,0.00044371,14]
[357407681,1744048258479,-151.0,0.00044371,14]
[357407682,1744048258488,-151.0,0.00044371,14]
[357407683,1744048258498,-151.0,0.00044371,14]
[357407684,1744048258507,-151.0,0.00044371,14]
[357407685,1744048258516,-151.0,0.00044371,14]
[357407686,1744048258525,-151.0,0.00044371,14]
[357407687,1744048258534,-225.890385,0.00044371,14]
[357407688,1744048258543,-151.0,0.00044371,14]
[357407689,1744048258552,-151.0,0.00044371,14]
[357407690,1744048258567,-225.890385,0.00044371,14]
[357407691,1744048258576,-151.0,0.00044371,14]
[357407692,1744048258586,-193.052813,0.00044371,14]
[357407693,1744048258595,-193.052813,0.00044371,14]
[357407694,1744048258604,-151.0,0.00044371,14]
[357407695,1744048258613,-151.0,0.00044371,14]
[357407696,1744048258623,-151.0,0.00044371,14]
[357407697,1744048258632,-185.529144,0.00044371,14]
[357407698,1744048258641,-151.0,0.00044371,14]
[357407699,1744048258650,-151.0,0.00044371,14]
[357407700,1744048258659,-261.820422,0.00044371,14]
[357407701,1744048258668,-261.820422,0.00044371,14]
[357407702,1744048258677,-151.0,0.00044371,14]
[357407703,1744048258687,-151.0,0.00044371,14]
[357407704,1744048258697,-151.0,0.00044371,14]
[357407705,1744048258710,-298.908777,0.00044371,14]
[357407706,1744048258719,-151.0,0.00044371,14]
[357407707,1744048258729,-151.0,0.00044371,14]
[357407708,1744048258738,-151.0,0.00044371,14]
[357407709,1744048258748,-151.0,0.00044371,14]
[357407710,1744048258758,-500.0,0.00044371,30]
[357407711,1744048258767,-259.978478,0.00044371,14]
[357407712,1744048258777,-259.978478,0.00044371,14]
[357407713,1744048258786,-151.0,0.00044371,14]
[357407714,1744048258795,-500.0,0.00044373,10]
[357407715,1744048258805,-177.031072,0.00044373,14]
[357407716,1744048258819,-177.031072,0.00044373,14]
[357407717,1744048258827,-151.0,0.00044373,14]
[357407718,1744048258837,-151.0,0.00044373,14]
[357407719,1744048258847,-151.0,0.00044373,14]
[357407720,1744048258856,-151.0,0.00044373,14]
[357407721,1744048258866,-151.0,0.00044373,14]
[357407722,1744048258875,-193.052813,0.00044373,14]
[357407723,1744048258884,-193.052813,0.00044373,14]
[357407724,1744048258893,-151.0,0.00044373,14]
[357407725,1744048258902,-151.0,0.00044373,14]
[357407726,1744048258911,-261.820422,0.00044373,14]
[357407727,1744048258920,-261.820422,0.00044373,14]
[357407728,1744048258933,-151.0,0.00044373,14]
[357407729,1744048258942,-151.0,0.00044373,14]
[357407730,1744048258951,-151.0,0.00044373,14]
[357407731,1744048258961,-151.0,0.00044373,14]
[357407732,1744048258970,-151.0,0.00044373,14]
[357407733,1744048258979,-259.978478,0.00044373,14]
[357407734,1744048258989,-259.978478,0.00044373,14]
[357407735,1744048258998,-1000.0,0.0004438,2]
[357407736,1744048259007,-1000.0,0.0004438,2]
[357407737,1744048259016,-202.1390397,0.0004438,30]
[357407738,1744048259025,-500.0,0.00044381,30]
[357407739,1744048259034,-500.0,0.00044381,16]
[357407740,1744048259043,-500.0,0.00044381,30]
[357407741,1744048259052,-500.0,0.00044381,30]
[357407742,1744048259062,-500.0,0.00044381,30]
[357407743,1744048259071,-500.0,0.00044381,5]
[357407744,1744048259081,-500.0,0.00044381,30]
[357407745,1744048259090,-500.0,0.00044381,30]
[357407746,1744048259099,-1368.794186,0.00044381,14]
[357407747,1744048259108,-1368.794186,0.00044381,14]
[357407748,1744048259117,-500.0,0.00044381,30]
[357407749,1744048259127,-500.0,0.00044381,30]
[357407750,1744048259135,-500.0,0.00044381,30]
[357407751,1744048259145,-1000.0,0.00044381,2]
[357407752,1744048259154,-151.0,0.00044381,14]
[357407753,1744048259163,-500.0,0.00044381,30]
[357407754,1744048259172,-151.0,0.00044381,14]
[357407755,1744048259181,-228.835702,0.00044381,14]
[357407756,1744048259191,-281.767434,0.00044381,14]
[357407757,1744048259200,-151.0,0.00044381,14]
[357407758,1744048259210,-151.0,0.00044381,14]
[357407759,1744048259219,-151.0,0.00044381,14]
[357407760,1744048259228,-151.0,0.00044381,14]
[357407761,1744048259238,-1000.0,0.00044381,2]
[357407762,1744048259247,-151.0,0.00044381,14]
[357407763,1744048259256,-500.0,0.00044381,30]
[357407764,1744048259266,-500.0,0.00044381,30]
[357407765,1744048259275,-200.0,0.00044381,7]
[357407766,1744048259284,-151.0,0.00044381,14]
[357407767,1744048259294,-225.890385,0.00044381,14]
[357407768,1744048259302,-500.0,0.00044381,30]
[357407769,1744048259315,-225.890385,0.00044381,14]
[357407770,1744048259324,-151.0,0.00044381,14]
[357407771,1744048259334,-500.0,0.00044381,30]
[357407772,1744048259344,-500.0,0.00044381,30]
[357407773,1744048259353,-563.3,0.00044381,30]
[357407774,1744048259363,-500.0,0.00044381,30]
[357407775,1744048259372,-500.0,0.00044381,30]
[357407776,1744048259382,-626.95,0.00044381,30]
[357407777,1744048259391,-500.0,0.00044381,30]
[357407778,1744048259401,-575.29,0.00044381,30]
[357407779,1744048259410,-500.0,0.00044381,30]
[357407780,1744048259419,-500.0,0.00044381,30]
[357407781,1744048259429,-1000.0,0.00044381,2]
[357407782,1744048259437,-151.0,0.00044381,14]
[357407783,1744048259446,-500.0,0.00044381,30]
[357407784,1744048259455,-172.708346,0.00044381,14]
[357407785,1744048259465,-500.0,0.00044381,30]
[357407786,1744048259474,-500.0,0.00044381,30]
[357407787,1744048259484,-500.0,0.00044381,30]
[357407788,1744048259493,-500.0,0.00044381,30]
[357407789,1744048259502,-500.0,0.00044381,30]
[357407790,1744048259511,-1000.0,0.00044381,30]
[357407791,1744048259520,-812.57,0.00044381,30]
[357407792,1744048259530,-500.0,0.00044381,30]
[357407793,1744048259539,-987.84,0.00044381,30]
[357407794,1744048259549,-868.95,0.00044381,30]
[357407795,1744048259561,-151.0,0.00044381,14]
[357407796,1744048259571,-757.43,0.00044381,30]
[357407797,1744048259580,-771.08,0.00044381,30]
[357407798,1744048259590,-2500.07,0.00044381,30]
[357407799,1744048259599,-500.0,0.00044381,30]
[357407800,1744048259608,-500.0,0.00044381,30]
[357407801,1744048259617,-500.0,0.00044381,30]
[357407802,1744048259627,-525.01,0.00044381,30]
[357407803,1744048259636,-912.09,0.00044381,30]
[357407804,1744048259645,-704.26,0.00044381,30]
[357407805,1744048259654,-1082.84,0.00044381,30]
[357407806,1744048259663,-932.45,0.00044381,30]
[357407807,1744048259672,-500.0,0.00044381,30]
[357407808,1744048259681,-500.0,0.00044381,30]
[357407809,1744048259690,-151.0,0.00044381,14]
[357407810,1744048259700,-583.42,0.00044381,30]
[357407811,1744048259712,-500.0,0.00044381,30]
[357407812,1744048259722,-1000.0,0.00044381,2]
[357407813,1744048259731,-1000.0,0.00044381,2]
[357407814,1744048259741,-500.0,0.00044381,30]
[357407815,1744048259750,-558.63,0.00044381,30]
[357407816,1744048259759,-1443.41,0.00044381,30]
[357407817,1744048259768,-521.28,0.00044381,30]
[357407818,1744048259777,-151.0,0.00044381,14]
[357407819,1744048259787,-577.05,0.00044381,30]
[357407820,1744048259797,-3342.727844,0.00044381,14]
[357407821,1744048259806,-500.0,0.00044381,30]
[357407822,1744048259819,-202.54814652,0.00044381,14]
[357407823,1744048260313,-3140.17969748,0.00044381,14]
[357407824,1744048260323,-500.0,0.00044381,30]
[357407825,1744048260332,-500.0,0.00044381,30]
[357407826,1744048260342,-500.0,0.00044381,30]
[357407827,1744048260351,-525.53,0.00044381,30]
[357407828,1744048260360,-176.55065,0.00044381,76]
[357407829,1744048260369,-500.0,0.00044381,30]
[357407830,1744048260378,-214.365637,0.00044381,14]
[357407831,1744048260388,-756.22,0.00044381,30]
[357407832,1744048260397,-214.365637,0.00044381,14]
[357407833,1744048260406,-523.0,0.00044381,30]
[357407834,1744048260415,-500.0,0.00044381,30]
[357407835,1744048260424,-500.0,0.00044381,30]
[357407836,1744048260433,-343.61767,0.00044381,14]
[357407837,1744048260442,-343.61767,0.00044381,14]
[357407838,1744048260451,-2496.67,0.00044381,30]
[357407839,1744048260460,-151.0,0.00044381,14]
[357407840,1744048260470,-507.99,0.00044381,30]
[357407841,1744048260479,-715.35,0.00044381,30]
[357407842,1744048260488,-257.722386,0.00044381,14]
[357407843,1744048260497,-2101.49,0.00044381,30]
[357407844,1744048260507,-502.17,0.00044381,30]
[357407845,1744048260516,-500.0,0.00044381,30]
[357407846,1744048260525,-500.0,0.00044381,30]
[357407847,1744048260534,-500.0,0.00044381,30]
[357407848,1744048260744,-500.0,0.00044381,30]
[357407849,1744048260754,-1162.9,0.00044381,30]
[357407850,1744048260764,-862.01,0.00044381,30]
[357407851,1744048260776,-511.57,0.00044381,30]
[357407852,1744048260786,-1401.26,0.00044381,30]
[357407853,1744048260796,-500.0,0.00044381,30]
[357407854,1744048260805,-534.81,0.00044381,30]
[357407855,1744048260817,-663.99,0.00044381,30]
[357407856,1744048260826,-844.07,0.00044381,30]
[357407857,1744048260835,-1001.04,0.00044381,30]
[357407858,1744048260845,-500.0,0.00044381,30]
[357407859,1744048260854,-708.64844406,0.00044381,30]
[357407860,1744048260864,-151.0,0.00044382,14]
[357407861,1744048260873,-151.0,0.00044382,14]
[357407862,1744048260883,-151.0,0.00044382,14]
[357407863,1744048260894,-151.0,0.00044382,14]
[357407864,1744048260903,-341.461164,0.00044382,14]
[357407865,1744048260913,-341.461164,0.00044382,14]
[357407866,1744048260922,-151.0,0.00044382,14]
[357407867,1744048260931,-151.0,0.00044382,14]
[357407868,1744048260940,-151.0,0.00044382,14]
[357407869,1744048260949,-151.0,0.00044382,14]
[357407870,1744048260958,-151.0,0.00044382,14]
[357407871,1744048260967,-151.0,0.00044382,14]
[357407872,1744048260976,-151.0,0.00044382,14]
[357407873,1744048260985,-1368.794186,0.00044382,14]
[357407874,1744048260994,-1368.794186,0.00044382,14]
[357407875,1744048261003,-151.0,0.00044382,14]
[357407876,1744048261013,-151.0,0.00044382,14]
[357407877,1744048261022,-177.031072,0.00044382,14]
[357407878,1744048261031,-177.031072,0.00044382,14]
[357407879,1744048261040,-500.0,0.00044382,30]
[357407880,1744048261049,-531.03565322,0.00044382,30]
[357407881,1744048261058,-513.47,0.00044382,30]
[357407882,1744048261069,-467.44,0.00044382,30]
[357407883,1744048261079,-1118.76,0.00044382,30]
[357407884,1744048261088,-500.0,0.00044382,30]
[357407885,1744048261098,-995.88,0.00044382,30]
[357407886,1744048261107,-500.0,0.00044382,30]
[357407887,1744048261117,-500.0,0.00044382,30]
[357407888,1744048261126,-500.0,0.00044382,30]
[357407889,1744048261136,-500.0,0.00044382,30]
[357407890,1744048261146,-500.0,0.00044382,30]
[357407891,1744048261155,-524.4213238,0.00044382,30]
[357407892,1744048261164,-151.0,0.00044382,14]
[357407893,1744048261174,-500.0,0.00044382,30]
[357407894,1744048261183,-500.0,0.00044382,30]
[357407895,1744048261192,-500.0,0.00044382,30]
[357407896,1744048261202,-627.96969756,0.00044382,30]
[357407897,1744048261211,-500.0,0.00044382,30]
[357407898,1744048261220,-500.0,0.00044382,30]
[357407899,1744048261230,-828.36,0.00044382,30]
[357407900,1744048261239,-693.28,0.00044382,30]
[357407901,1744048261248,-500.0,0.00044382,30]
[357407902,1744048261258,-500.0,0.00044382,30]
[357407903,1744048261267,-675.6,0.00044382,30]
[357407904,1744048261276,-500.0,0.00044382,30]
[357407905,1744048261286,-353.71270443,0.00044382,30]
[357407906,1744048261295,-500.0,0.00044382,30]
[357407907,1744048261305,-507.59,0.00044382,30]
[357407908,1744048261317,-500.0,0.00044382,30]
[357407909,1744048261327,-500.0,0.00044382,30]
[357407910,1744048261336,-500.0,0.00044382,30]
[357407911,1744048261346,-500.0,0.00044382,30]
[357407912,1744048261355,-500.0,0.00044382,30]
[357407913,1744048261364,-500.0,0.00044382,30]
[357407914,1744048261373,-500.0,0.00044382,30]
[357407915,1744048261383,-500.0,0.00044382,30]
[357407916,1744048261392,-866.84,0.00044382,30]
[357407917,1744048261401,-533.33742376,0.00044382,30]
[357407918,1744048261411,-731.17,0.00044382,30]
[357407919,1744048261420,-500.0,0.00044382,30]
[357407920,1744048261429,-222.703088,0.00044382,14]
[357407921,1744048261438,-500.0,0.00044382,30]
[357407922,1744048261448,-596.85,0.00044382,30]
[357407923,1744048261457,-500.0,0.00044382,30]
[357407924,1744048261466,-500.0,0.00044382,30]
[357407925,1744048261476,-500.0,0.00044382,30]
[357407926,1744048261485,-500.0,0.00044382,30]
[357407927,1744048261495,-664.56,0.00044382,30]
[357407928,1744048261504,-500.0,0.00044382,30]
[357407929,1744048261513,-500.0,0.00044382,30]
[357407930,1744048261522,-500.0,0.00044382,30]
[357407931,1744048261532,-500.0,0.00044382,30]
[357407932,1744048261541,-1047.73,0.00044382,30]
[357407933,1744048261551,-500.0,0.00044382,30]
[357407934,1744048261560,-151.0,0.00044382,14]
[357407935,1744048261573,-500.0,0.00044382,30]
[357407936,1744048261582,-500.0,0.00044382,30]
[357407937,1744048261592,-500.0,0.00044382,30]
[357407938,1744048261601,-897.81,0.00044382,30]
[357407939,1744048261610,-500.0,0.00044382,30]
[357407940,1744048261620,-500.0,0.00044382,30]
[357407941,1744048261630,-500.0,0.00044382,30]
[357407942,1744048261639,-500.0,0.00044382,30]
[357407943,1744048261648,-500.0,0.00044382,30]
[357407944,1744048261658,-500.0,0.00044382,30]
[357407945,1744048261668,-500.0,0.00044382,30]
[357407946,1744048261677,-500.0,0.00044382,30]
[357407947,1744048261686,-518.87,0.00044382,30]
[357407948,1744048261696,-151.0,0.00044382,14]
[357407949,1744048261706,-791.12,0.00044382,30]
[357407950,1744048261716,-151.0,0.00044382,14]
[357407951,1744048261725,-510.18562134,0.00044382,30]
[357407952,1744048261734,-500.0,0.00044382,30]
[357407953,1744048261743,-500.0,0.00044382,30]
[357407954,1744048261753,-500.0,0.00044382,30]
[357407955,1744048261762,-500.0,0.00044382,30]
[357407956,1744048261771,-193.052813,0.00044382,14]
[357407957,1744048261780,-500.0,0.00044382,30]
[357407958,1744048261791,-193.052813,0.00044382,14]
[357407959,1744048261801,-679.97,0.00044382,30]
[357407960,1744048261810,-614.45,0.00044382,30]
[357407961,1744048261822,-500.0,0.00044382,30]
[357407962,1744048261832,-500.0,0.00044382,30]
[357407963,1744048261841,-567.3,0.00044382,30]
[357407964,1744048261851,-500.0,0.00044382,30]
[357407965,1744048261859,-500.0,0.00044382,30]
[357407966,1744048261869,-500.0,0.00044382,30]
[357407967,1744048261879,-919.65,0.00044382,30]
[357407968,1744048261888,-500.0,0.00044382,30]
[357407969,1744048261897,-500.0,0.00044382,30]
[357407970,1744048261906,-500.0,0.00044382,30]
[357407971,1744048261915,-818.1,0.00044382,30]
[357407972,1744048261925,-500.0,0.00044382,30]
[357407973,1744048261934,-500.0,0.00044382,30]
[357407974,1744048261943,-500.0,0.00044382,30]
[357407975,1744048261952,-500.0,0.00044382,30]
[357407976,1744048261961,-500.0,0.00044382,30]
[357407977,1744048261971,-857.59,0.00044382,30]
[357407978,1744048261980,-500.0,0.00044382,30]
[357407979,1744048261989,-578.04,0.00044382,30]
[357407980,1744048261998,-500.0,0.00044382,30]
[357407981,1744048262007,-547.61466545,0.00044382,30]
[357407982,1744048262016,-500.0,0.00044382,30]
[357407983,1744048262025,-151.0,0.00044382,14]
[357407984,1744048262035,-500.0,0.00044382,30]
[357407985,1744048262044,-545.43,0.00044382,30]
[357407986,1744048262054,-500.0,0.00044382,30]
[357407987,1744048262064,-151.0,0.00044382,14]
[357407988,1744048262077,-500.0,0.00044382,30]
[357407989,1744048262087,-500.0,0.00044382,30]
[357407990,1744048262097,-624.42,0.00044382,30]
[357407991,1744048262107,-500.0,0.00044382,30]
[357407992,1744048262116,-261.820422,0.00044382,14]
[357407993,1744048262126,-261.820422,0.00044382,14]
[357407994,1744048262138,-862.81,0.00044382,30]
[357407995,1744048262147,-151.0,0.00044382,14]
[357407996,1744048262158,-503.12207992,0.00044382,30]
[357407997,1744048262168,-500.0,0.00044382,30]
[357407998,1744048262178,-510.50031624,0.00044382,30]
[357407999,1744048262188,-500.0,0.00044382,30]
[357408000,1744048262198,-190.63572519,0.00044382,30]
[357408001,1744048262208,-536.43,0.00044382,30]
[357408002,1744048262218,-500.0,0.00044382,30]
[357408003,1744048262227,-500.0,0.00044382,30]
[357408004,1744048262239,-500.0,0.00044382,30]
[357408005,1744048262248,-500.0,0.00044382,30]
[357408006,1744048262258,-847.23,0.00044382,30]
[357408007,1744048262268,-500.0,0.00044382,30]
[357408008,1744048262277,-500.0,0.00044382,30]
[357408009,1744048262286,-267.82782,0.00044382,14]
[357408010,1744048262295,-500.0,0.00044382,30]
[357408011,1744048262305,-151.0,0.00044382,14]
[357408012,1744048262315,-500.0,0.00044382,30]
[357408013,1744048262326,-207.993532,0.00044382,14]
[357408014,1744048262336,-2496.67,0.00044382,30]
[357408015,1744048262346,-500.0,0.00044382,30]
[357408016,1744048262356,-259.978478,0.00044382,14]
[357408017,1744048262365,-259.978478,0.00044382,14]
[357408018,1744048262375,-1000.0,0.00044382,2]
[357408019,1744048262384,-1000.0,0.00044382,2]
[357408020,1744048262393,-1000.0,0.00044382,2]
[357408021,1744048262403,-1000.0,0.00044382,2]
[357408022,1744048262412,-1000.0,0.00044382,2]
[357408023,1744048262421,-217.449859,0.00044383,14]
[357408024,1744048262431,-151.0,0.00044383,14]
[357408025,1744048262440,-151.0,0.00044383,14]
[357408026,1744048262449,-151.0,0.00044383,14]
[357408027,1744048262459,-151.0,0.00044383,14]
[357408028,1744048262468,-151.0,0.00044383,14]
[357408029,1744048262478,-177.031072,0.00044383,14]
[357408030,1744048262487,-177.031072,0.00044383,14]
[357408031,1744048262497,-500.0,0.00044383,30]
[357408032,1744048262506,-500.0,0.00044383,30]
[357408033,1744048262515,-500.0,0.00044383,120]
[357408034,1744048262524,-500.0,0.00044383,30]
[357408035,1744048262533,-500.0,0.00044383,30]
[357408036,1744048262543,-645.9,0.00044383,30]
[357408037,1744048262552,-151.0,0.00044383,14]
[357408038,1744048262563,-615.49,0.00044383,30]
[357408039,1744048262575,-500.0,0.00044383,30]
[357408040,1744048262585,-500.0,0.00044383,30]
[357408041,1744048262595,-1034.98,0.00044383,30]
[357408042,1744048262604,-500.0,0.00044383,30]
[357408043,1744048262613,-500.0,0.00044383,30]
[357408044,1744048262622,-500.0,0.00044383,30]
[357408045,1744048262631,-500.0,0.00044383,30]
[357408046,1744048262640,-532.81,0.00044383,5]
[357408047,1744048262650,-500.0,0.00044383,30]
[357408048,1744048262659,-518.63,0.00044383,30]
[357408049,1744048262668,-500.0,0.00044383,30]
[357408050,1744048262677,-661.0,0.00044383,30]
[357408051,1744048262687,-151.0,0.00044383,14]
[357408052,1744048262698,-151.0,0.00044383,14]
[357408053,1744048262709,-334.21724811,0.00044383,30]
[357408054,1744048262718,-500.0,0.00044383,30]
[357408055,1744048262728,-500.0,0.00044383,30]
[357408056,1744048262737,-500.0,0.00044383,30]
[357408057,1744048262747,-500.0,0.00044383,30]
[357408058,1744048262756,-151.0,0.00044383,14]
[357408059,1744048262765,-151.0,0.00044383,14]
[357408060,1744048262774,-500.0,0.00044383,30]
[357408061,1744048262784,-151.0,0.00044383,14]
[357408062,1744048262794,-151.0,0.00044383,14]
[357408063,1744048262803,-500.0,0.00044383,30]
[357408064,1744048262812,-500.0,0.00044383,30]
[357408065,1744048262825,-500.0,0.00044383,30]
[357408066,1744048262834,-151.0,0.00044383,14]
[357408067,1744048262844,-500.0,0.00044383,30]
[357408068,1744048262854,-500.0,0.00044383,30]
[357408069,1744048262863,-500.0,0.00044383,30]
[357408070,1744048262874,-500.0,0.00044383,30]
[357408071,1744048262885,-500.0,0.00044383,30]
[357408072,1744048262894,-510.23,0.00044383,30]
[357408073,1744048262904,-500.0,0.00044383,30]
[357408074,1744048262914,-500.0,0.00044383,30]
[357408075,1744048262923,-500.0,0.00044383,30]
[357408076,1744048262932,-500.0,0.00044383,30]
[357408077,1744048262942,-500.0,0.00044383,30]
[357408078,1744048262952,-500.0,0.00044383,30]
[357408079,1744048262960,-500.0,0.00044383,30]
[357408080,1744048262969,-500.0,0.00044383,30]
[357408081,1744048262978,-500.0,0.00044383,30]
[357408082,1744048262987,-500.0,0.00044383,30]
[357408083,1744048262996,-527.69074803,0.00044383,30]
[357408084,1744048263006,-500.0,0.00044383,30]
[357408085,1744048263015,-500.0,0.00044383,30]
[357408086,1744048263024,-500.0,0.00044383,30]
[357408087,1744048263034,-500.0,0.00044383,30]
[357408088,1744048263043,-500.0,0.00044383,30]
[357408089,1744048263052,-500.0,0.00044383,30]
[357408090,1744048263061,-500.0,0.00044383,30]
[357408091,1744048263074,-500.0,0.00044383,30]
[357408092,1744048263084,-500.0,0.00044383,30]
[357408093,1744048263093,-500.0,0.00044383,30]
[357408094,1744048263103,-500.0,0.00044383,30]
[357408095,1744048263112,-805.1,0.00044383,30]
[357408096,1744048263122,-500.0,0.00044383,30]
[357408097,1744048263131,-518.48802203,0.00044383,30]
[357408098,1744048263141,-500.0,0.00044383,30]
[357408099,1744048263150,-500.0,0.00044383,30]
[357408100,1744048263160,-500.0,0.00044383,30]
[357408101,1744048263170,-500.0,0.00044383,30]
[357408102,1744048263179,-500.0,0.00044383,30]
[357408103,1744048263189,-500.0,0.00044383,30]
[357408104,1744048263199,-500.0,0.00044383,30]
[357408105,1744048263209,-500.0,0.00044383,30]
[357408106,1744048263219,-500.0,0.00044383,30]
[357408107,1744048263228,-500.0,0.00044383,30]
[357408108,1744048263238,-500.0,0.00044383,30]
[357408109,1744048263248,-500.0,0.00044383,30]
[357408110,1744048263257,-500.0,0.00044383,30]
[357408111,1744048263267,-500.0,0.00044383,30]
[357408112,1744048263276,-500.0,0.00044383,30]
[357408113,1744048263286,-547.39,0.00044383,30]
[357408114,1744048263295,-225.890385,0.00044383,14]
[357408115,1744048263305,-500.0,0.00044383,30]
[357408116,1744048263315,-225.890385,0.00044383,14]
[357408117,1744048263326,-500.0,0.00044383,30]